Cogmind - Beta 15 @@@ ROGUE MODE // 2025.06.18 @ 19:49:49 Player: puppuppit Result: Destroyed by Striker with Compact Linear Accelerator Performance ------------- Evolutions (6) 3000 Regions Visited (17) 3400 Robots Destroyed (245) 1225 Value Destroyed (8406) 8406 Prototype IDs (40) 800 Alien Tech Used (0) 0 Bonus (6173) 6173 TOTAL SCORE: 23004 Bonus ------- Triggered High Security 500 High Alert Combat Kills 1323 Follower Combat Kills 1435 Registered with UFD 300 Met Optimus in HQ 500 Met Imprinter 300 Met Warlord at Base 500 MAIN.C Attacked Warlord 500 Warlord Defense Kills 1014 Friendly Fire -199 Cogmind --------- Core Integrity 0/1150 Matter 66/300 Energy 71/100 System Corruption 10% Temperature Cool (0) Movement Core (50) Location -4/Factory Parts ------- > --- POWER (2) -------- (None) > --- PROPULSION (6) --- (None) > --- UTILITY (7) ------ Improved Target Analyzer System Mapper Improved System Shield > --- WEAPON (4) ------- (None) > --- INVENTORY (5) ---- Vortex Chain Reactor Advanced Heat Sink Microactuators Companion Sword Peak State ------------ > --- POWER ------------ Vortex Chain Reactor > --- PROPULSION ------- Gravmag System Antigrav System Improved Antigrav System Cooled Antigrav System Cooled Antigrav System > --- UTILITY ---------- Improved Coolant Injector Large Storage Unit Improved Melee Analysis Suite Improved Armor Integrity Analyzer Experimental Weapon Shielding Makeshift Hacking Suite Improved System Shield > --- WEAPON ----------- Vortex Driver Vortex Driver Improved Remote Datajack Companion Sword > --- INVENTORY -------- Light Angular Momentum Engine Matter Compressor Advanced Recoil Stabilizer Microactuators Experimental Phase Shifter Enhanced Scrap Shield Experimental Focal Shield Makeshift Hacking Suite System Mapper Helical Railgun Helical Railgun Scatter Rocket Array Improved Plasma Cutter [Rating: 127] Favorites ----------- Power Light Angular Momentum Engine Engine Light Angular Momentum Engine Power Core Neutrino Core Reactor Vortex Chain Reactor Propulsion Carbon-fiber Leg Treads Light Treads Leg Carbon-fiber Leg Wheel Armored Huge Wheel Hover Unit Gravmag Array Flight Unit Cooled Impulse Thruster Utility Large Storage Unit Device Advanced Terrain Scanner Storage Large Storage Unit Processor Improved Melee Analysis Suite Hackware Improved System Shield Protection Enhanced Scrap Shield Weapon Improved Light Cannon Energy Gun Arc Projector Energy Cannon Vortex Driver Ballistic Gun Light Assault Rifle Ballistic Cannon Improved Light Cannon Launcher Grenade Launcher Special Weapon Improved Remote Datajack Slashing Weapon Companion Sword Build | -11 -10 -10 -10 -8 -6 -6 -6 -6 -6 -6 -5 -5 -5 -5 -5 -4 -4 ------- Run | Yrd Mat Min Sub Scr Fac Was Fac Low Low Zio Pro Fac Upp Upp War Pro Fac Slots Evolved 12 | . . . . . 8 . . . . . . 2 . . . . 2 Power 1 | . . . . . . . . . . . . . . . . . 1 Propulsion 4 | . . . . . 3 . . . . . . . . . . . 1 Utility 5 | . . . . . 3 . . . . . . 2 . . . . . Weapon 2 | . . . . . 2 . . . . . . . . . . . . Parts Attached 161 | 7 10 1 5 5 43 4 3 6 . 1 . 18 2 6 20 3 27 Power 22 | 1 1 . 1 1 5 . . 1 . . . 3 1 1 1 . 6 Engine 12 | 1 1 . 1 . 4 . . 1 . . . . . . 1 . 3 Core 9 | . . . . 1 1 . . . . . . 3 1 1 . . 2 Reactor 1 | . . . . . . . . . . . . . . . . . 1 Propulsion 47 | 2 1 . . 2 12 1 1 1 . . . 8 1 . 7 1 10 Treads 9 | 2 1 . . 2 3 . . . . . . . . . . . 1 Leg 8 | . . . . . . . . . . . . 6 1 . 1 . . Wheel 4 | . . . . . 2 . . . . . . . . . . . 2 Hover 23 | . . . . . 7 1 . 1 . . . 2 . . 4 1 7 Flight 3 | . . . . . . . 1 . . . . . . . 2 . . Utility 57 | 2 5 1 . 2 12 2 2 4 . 1 . 6 . 3 8 1 8 Device 25 | 1 1 . . 1 5 . 1 4 . 1 . 1 . 2 5 . 3 Storage 6 | 1 1 . . 1 1 . . . . . . 1 . . 1 . . Processor 9 | . . . . . 3 1 . . . . . . . 1 1 1 2 Hackware 9 | . . . . . 3 . 1 . . . . 3 . . . . 2 Protection 8 | . 3 1 . . . 1 . . . . . 1 . . 1 . 1 Artifact . | . . . . . . . . . . . . . . . . . . Weapon 35 | 2 3 . 4 . 14 1 . . . . . 1 . 2 4 1 3 Energy Gun 4 | . . . 1 . 1 1 . . . . . . . . 1 . . Energy Cannon 2 | . . . . . . . . . . . . . . . 2 . . Ballistic Gun 5 | 2 1 . . . . . . . . . . . . . . . 2 Ballistic Cannon 14 | . 2 . 2 . 9 . . . . . . . . . . 1 . Launcher 3 | . . . 1 . . . . . . . . 1 . 1 . . . Special Weapon 4 | . . . . . 1 . . . . . . . . 1 1 . 1 Impact Weapon . | . . . . . . . . . . . . . . . . . . Slashing Weapon 3 | . . . . . 3 . . . . . . . . . . . . Piercing Weapon . | . . . . . . . . . . . . . . . . . . Special Melee Weapon . | . . . . . . . . . . . . . . . . . . Unidentified Prototypes 16 | . . . . . 1 1 . . . . . 1 . . 10 . 3 Parts Lost 58 | . . . . . 19 1 1 . . . . 7 1 1 . . 28 Power 6 | . . . . . 1 . . . . . . 1 . . . . 4 Propulsion 28 | . . . . . 6 1 . . . . . 4 1 1 . . 15 Utility 16 | . . . . . 7 . . . . . . 2 . . . . 7 Weapon 8 | . . . . . 5 . 1 . . . . . . . . . 2 Highest Loss Streak 9 | . . . . . 7 1 1 . . . . 6 1 1 . . 9 To Critical Strikes . | . . . . . . . . . . . . . . . . . . Average Backups 12 | 1 13 15 14 13 11 8 9 8 9 10 11 11 12 14 14 13 13 Power . | . . . . . . . . . 1 1 1 1 1 1 . 1 1 Propulsion . | . . 1 1 2 1 1 . . . . . 1 . 1 . . . Utility 6 | . 7 7 5 2 2 2 5 5 7 8 9 6 8 9 9 8 7 Weapon 3 | . 5 6 7 6 5 2 1 . . . . . 1 1 3 3 3 Tool/Special . | . . . . . . . . . . . . . . . . . . Unused Backups 35 | . 6 1 2 2 7 . . 2 . . . 4 . 4 4 . 3 Power 5 | . . . . . 2 . . . . . . 2 . 1 . . . Propulsion 2 | . . . . . . . . 1 . . . 1 . . . . . Utility 21 | . 3 1 2 1 3 . . 1 . . . 1 . 3 3 . 3 Weapon 7 | . 3 . . 1 2 . . . . . . . . . 1 . . Tool/Special . | . . . . . . . . . . . . . . . . . . Average Slot Usage (%) 79 | . 100 100 100 99 85 55 62 51 53 53 53 63 75 74 83 100 67 Engine 5 | . 14 14 14 5 3 . . 2 6 6 6 . . . 1 5 1 Core 2 | . . . . 8 2 5 5 3 . . . 4 5 5 3 . 2 Treads 9 | . 28 28 28 28 11 . . . . . . . . . . . . Leg 6 | . . . . . . . . . . . . 10 28 27 17 . . Hover 8 | . . . . . 10 17 7 19 20 20 20 10 . . 7 27 18 Device 7 | . 8 13 8 2 9 . 1 11 13 6 10 6 11 8 4 5 6 Storage 8 | . 14 14 14 14 6 6 6 4 6 6 6 5 5 5 5 5 4 Processor 2 | . . . . . 6 18 18 . . . . . . 1 6 11 6 Hackware 5 | . . . . . 7 . 3 . . . . 14 11 11 11 11 11 Protection 3 | . 5 . 6 11 . . . . . 5 2 2 5 5 5 5 1 Ballistic Cannon 10 | . 23 28 26 28 18 3 . . . . . . . . . . . Slashing Weapon 3 | . . . . . 3 . 4 6 6 6 6 4 5 5 5 5 4 Peak Build Rating 127 | 9 13 13 14 21 70 57 68 81 73 77 77 91 69 74 122 117 127 Average Rating 54 | 6 12 13 12 17 57 50 59 73 73 76 75 75 65 67 83 114 87 On Entrance 52 | . 9 13 13 13 21 35 51 64 73 73 77 74 68 68 65 117 113 Naked Turns . | . . . . . . . . . . . . . . . . . . Heaviest Build 97 | 13 38 38 38 38 58 38 35 38 38 44 44 68 66 58 71 71 97 Greatest Support 105 | 40 40 40 40 40 105 29 40 49 49 49 49 75 76 76 61 58 71 Greatest Overweight (x) 9 | . . . . . 2 1 1 . . . . 3 . . 1 1 9 Average Overweight (x) . | . . . . . . . . . . . . . . . . 1 . Largest Inventory Capacity 15 | 8 15 15 15 15 15 15 15 15 15 15 15 15 15 15 15 15 15 Average Capacity 14 | 7 14 15 15 15 15 15 15 13 15 15 15 15 15 15 15 15 14 Most Carried 15 | 3 15 15 15 15 15 15 15 15 15 15 15 15 15 15 15 15 15 Average Carried 13 | 1 13 14 14 14 13 12 13 12 15 14 14 12 12 14 14 15 14 Final Capacity 15 | 8 15 15 15 15 15 15 15 15 15 15 15 15 15 15 15 15 15 Final Carried 15 | 3 15 15 15 15 13 15 13 15 15 15 15 11 14 15 15 15 15 Class Distribution -------------------- 34% | Mutant 16% | Scout 13% | Hacker-Mutant 8% | Scavenger-Mutant 7% | Derelict-Mutant 5% | Derelict-Gunner 4% | Commander-Mutant Dominant Class ---------------- Mutant | -10/Materials Mutant | -10/Mines Mutant | -10/Subcaves Mutant | -8/Scraptown Derelict-Gunner | -6/Factory Mutant | -6/Waste Mutant | -6/Factory Scout | -6/Lower Caves Scout | -6/Lower Caves Scout | -6/Zion Scout | -5/Proximity Caves Hacker-Scout | -5/Factory Scavenger-Mutant | -5/Upper Caves Hacker-Mutant | -5/Upper Caves Commander-Mutant | -5/Warlord Derelict-Gunner | -4/Proximity Caves Hacker-Mutant | -4/Factory Resources | -11 -10 -10 -10 -8 -6 -6 -6 -6 -6 -6 -5 -5 -5 -5 -5 -4 -4 ----------- Run | Yrd Mat Min Sub Scr Fac Was Fac Low Low Zio Pro Fac Upp Upp War Pro Fac Matter Collected 8771 | 320 895 399 441 264 2124 . 290 1163 186 178 200 520 173 363 380 47 828 Remotely 419 | . . . . . 419 . . . . . . . . . . . . Salvage Created 8987 | 199 792 511 278 . 2440 . 119 97 . . 70 1190 304 828 254 18 1887 Parts 430 | 15 45 38 13 . 125 . 4 2 . . 2 37 7 37 11 . 94 Haulers Intercepted 5 | . 2 . . . 2 . . . . . . . . . . . 1 Recyclers Shooed 17 | . 3 3 . . 7 . . . . . . 3 . . . . 1 Parts Field Recycled . | . . . . . . . . . . . . . . . . . . Retrieved Matter . | . . . . . . . . . . . . . . . . . . Parts Self-Destructed 65 | . . . 18 . . . . 6 5 . 23 . 1 10 . 2 . Prevented 12 | . . . . . . . . 8 . . . . . 4 . . . Kills | -11 -10 -10 -10 -8 -6 -6 -6 -6 -6 -6 -5 -5 -5 -5 -5 -4 -4 ------- Run | Yrd Mat Min Sub Scr Fac Was Fac Low Low Zio Pro Fac Upp Upp War Pro Fac Combat Hostiles Destroyed 141 | . 12 3 8 . 33 . 1 1 . . 1 17 3 22 7 2 31 Melee 38 | . . . . . 11 . 1 1 . . 1 9 2 2 . . 11 Guns 4 | . 1 . . . . . . . . . . . . . . . 3 Cannons 52 | . 9 3 4 . 19 . . . . . . . . . 7 2 8 AOE 43 | . 2 . 4 . 3 . . . . . . 8 . 17 . . 9 Classes Destroyed 25 | 3 7 . 2 . 4 . . 1 . . . 1 . 2 4 . 1 Worker 38 | 1 7 6 . . 12 . . . . . . 3 . . . . 9 Builder 10 | . 1 4 . . 3 . . . . . . . . . . . 2 Tunneler 8 | 4 . 1 . . 1 . . . . . . 1 . . . . 1 Hauler 5 | . 2 . . . 2 . . . . . . . . . . . 1 Recycler 25 | 1 7 6 . . 6 . . . . . . 3 . . . . 2 Mechanic 5 | . 1 . . . 1 . 1 . . . . . . . . . 2 Operator 4 | . 1 . . . 2 . . . . . . . . . . . 1 Watcher 8 | . 3 . . . 4 . . . . . . . . . . . 1 Swarmer 21 | . 9 . . . 4 . . . . . . . . 8 . . . Saboteur 3 | . . . . . 1 . . . . . . . . . . . 2 Grunt 51 | . 3 3 . . 11 . . . . . 1 12 . 7 3 . 11 Brawler 2 | . . . . . . . . . . . . . . 2 . . . Duelist 2 | . . . . . . . . . . . . . . 2 . . . Protector 2 | . . . . . . . . . . . . . . . 1 . 1 Sentry 14 | . . . 1 . 5 . 1 . . . . . 1 2 . . 4 Specialist 2 | . . . . . . . . . . . . 1 . . . . 1 Hunter 12 | . . . . . 3 . . . . . . 3 2 2 . . 2 Programmer 21 | . . . . . 8 . . . . . . 1 . . 1 2 9 Heavy 1 | . . . . . 1 . . . . . . . . . . . . Behemoth 1 | . . . . . . . . . . . . . . . . . 1 Striker 1 | . . . . . . . . . . . . . . . 1 . . Executioner 1 | . . . . . . . . . . . . . . . 1 . . Subdweller 7 | . . . 7 . . . . . . . . . . . . . . Tinkerer 2 | . . . . . . . . . . . . . . . 2 . . Mutant 1 | . . . . . . . . 1 . . . . . . . . . Best Kill Streak 11 | 3 4 6 3 . 9 . 1 1 . . 1 7 2 10 4 1 11 Combat Bots Only 10 | . 3 2 3 . 9 . 1 1 . . 1 4 2 10 4 1 6 Max Kills in Single Turn 8 | 1 3 2 1 . 2 . 1 1 . . 1 4 1 5 2 1 8 Gunslinging . | . . . . . . . . . . . . . . . . . . Exploded 6 | . 2 . 1 . 1 . . . . . . 4 . 5 . . 6 Melee 1 | . . . . . 1 . 1 1 . . 1 1 1 1 . . 1 Uniques/NPCs Destroyed . | . . . . . . . . . . . . . . . . . . Combat | -11 -10 -10 -10 -8 -6 -6 -6 -6 -6 -6 -5 -5 -5 -5 -5 -4 -4 -------- Run | Yrd Mat Min Sub Scr Fac Was Fac Low Low Zio Pro Fac Upp Upp War Pro Fac Hostile Shots Fired 929 | . 23 9 25 . 362 2 18 16 . . . 119 16 42 3 . 294 Missed 296 | . 7 1 12 . 117 1 7 4 . . . 26 2 15 1 . 103 Hits 633 | . 16 8 13 . 245 1 11 12 . . . 93 14 27 2 . 191 Melee 4 | . . . . . 2 1 . . . . . . . . . . 1 Projectile 629 | . 16 8 13 . 243 . 11 12 . . . 93 14 27 2 . 190 AOE 2 | . . . . . . . . . . . . . . . . . 2 Critical Strikes 28 | . . . . . 12 . . 1 . . 1 2 1 . . 1 10 Part Disruptions 2 | . . . . . . . . . . . . 1 . . . . 1 Damage Taken 11751 | . 327 102 351 . 3842 55 214 137 . . 23 1798 226 549 63 39 4025 Core 2590 | . 12 . 52 . 715 . 43 51 . . . 427 22 88 10 . 1170 Absorbed by Shields 687 | . . . . . 56 . . . . . . 41 79 176 59 36 240 Redirected to Shielding 151 | . . . . . . . . . . . . . . . 10 . 141 Ignored by Resistances 22 | . . . . . . . . . . . . . . . . . 22 Regen/Repaired (Parts) 1091 | . 261 . . . . . 155 . . . . 591 . . 84 . . Core Remaining (%) 55 | 100 . . . 74 . . . . . . 4 . . . . 45 . Volleys Fired 392 | 25 75 43 58 . 90 5 2 8 . . . 6 . 9 18 4 49 Largest 4 | 2 2 2 2 . 4 2 1 1 . . . 1 . 1 2 2 2 Hottest 200 | 40 66 66 66 . 160 80 5 5 . . . 50 . 50 200 200 200 Shots Fired 735 | 50 150 84 92 . 218 7 3 8 . . . 6 . 9 22 8 78 Gun 112 | 50 22 . 6 . . 1 1 . . . . . . . . . 32 Cannon 548 | . 128 84 67 . 211 6 . . . . . . . . 12 8 32 Launcher 45 | . . . 19 . 7 . . . . . . 6 . 8 . . 5 Special 30 | . . . . . . . 2 8 . . . . . 1 10 . 9 Kinetic 600 | 50 150 84 67 . 211 6 . . . . . . . . . . 32 Thermal 8 | . . . 6 . . 1 1 . . . . . . . . . . Explosive 41 | . . . 19 . 7 . . . . . . 6 . 4 . . 5 Electromagnetic 4 | . . . . . . . . . . . . . . 4 . . . Entropic 52 | . . . . . . . . . . . . . . . 12 8 32 Robot Hit Streak 14 | 7 7 7 11 . 12 4 1 7 . . . 3 . 3 11 4 14 Robot Miss Streak 13 | 3 5 6 3 . 8 1 1 1 . . . 12 . 13 1 1 12 Penetration Max 1 | . . . . . . . . . . . . . . . 1 . 1 Secondary Targets 2 | . . . . . . . . . . . . . . . . . 2 Max Gunslinging Chain 1 | . . . . . . . . . . . . . . . . . 1 Shots Hit Robots 615 | 33 81 42 54 . 173 5 4 15 . . 2 45 14 16 22 6 103 Core Hits 436 | 11 34 19 21 . 94 . 2 4 . . 1 66 4 58 8 2 112 Critical Kills 1 | . . . . . . . . . . . . . . . . . 1 Critical Parts Destroyed 1 | . . . . . . . . . . . . . . . . . 1 Critical Strikes 41 | . 6 2 3 . 5 . . . . . . 4 . . 8 . 13 Destroy 2 | . . . . . . . . . . . . . . . . . 2 Blast 14 | . 6 2 3 . 3 . . . . . . . . . . . . Sunder 17 | . . . . . . . . . . . . . . . 8 . 9 Melee Attacks 263 | . . . . . 89 . 4 10 . . 3 52 16 10 4 . 75 Impact . | . . . . . . . . . . . . . . . . . . Slashing 263 | . . . . . 89 . 4 10 . . 3 52 16 10 4 . 75 Piercing . | . . . . . . . . . . . . . . . . . . Sneak Attacks 49 | . . . . . 25 . 1 . . . . 8 . . 2 . 13 Combat Hostiles 2 | . . . . . . . . . . . . . . . . . 2 Follow-up Attacks 4 | . . . . . 3 . . . . . . 1 . . . . . Damage Inflicted 30571 | 270 1847 913 1915 . 7780 126 178 486 . . 102 3633 659 2290 1540 505 8327 Guns 1096 | 270 140 . . . . 21 . . . . . . . . . . 665 Cannons 10098 | . 1444 913 838 . 2705 105 . . . . . . . . 1352 505 2236 Explosions 8556 | . 263 . 1077 . 913 . . . . . . 1724 . 1852 . . 2727 Melee 10821 | . . . . . 4162 . 178 486 . . 102 1909 659 438 188 . 2699 Ramming . | . . . . . . . . . . . . . . . . . . Kinetic 7080 | 270 1584 913 838 . 2705 105 . . . . . . . . . . 665 Thermal 342 | . 263 . . . . 21 . . . . . . . 58 . . . Explosive 7695 | . . . 1077 . 913 . . . . . . 1724 . 1393 . . 2588 Electromagnetic 540 | . . . . . . . . . . . . . . 401 . . 139 Impact . | . . . . . . . . . . . . . . . . . . Slashing 10821 | . . . . . 4162 . 178 486 . . 102 1909 659 438 188 . 2699 Piercing . | . . . . . . . . . . . . . . . . . . Entropic 4093 | . . . . . . . . . . . . . . . 1352 505 2236 Highest Corruption 22 | . 1 1 1 . 10 20 20 22 22 22 . 1 1 1 1 1 10 Average Corruption 5 | . 1 1 1 . 5 18 20 21 22 22 . 1 1 1 1 1 4 Corruption Purged . | . . . . . . . . . . . . . . . . . . Corruption Blocked . | . . . . . . . . . . . . . . . . . . Effects 157 | . 3 5 12 . 14 7 21 39 11 3 . 1 6 9 . 3 23 Message Errors 39 | . 2 . 3 . 4 . 5 14 1 1 . . 2 2 . . 5 Matter Fused 49 | . 1 2 3 . 5 2 4 14 4 . . . 3 3 . 1 7 Heat Flow Errors 13 | . . . . . 1 . 4 1 2 . . 1 . 1 . 2 1 Energy Discharges 19 | . . . 2 . 1 . 3 1 3 1 . . . 3 . . 5 Parts Rejected 1 | . . . . . . . . . . . . . . . . . 1 Parts Fused 1 | . . . . . . . . . . 1 . . . . . . . Data Loss (minor) 17 | . . . 2 . 2 2 3 4 1 . . . 1 . . . 2 Data Loss (major) 7 | . . 1 1 . . 1 . 3 . . . . . . . . 1 Misfires 1 | . . . . . . . 1 . . . . . . . . . . Alerts 1 | . . . . . 1 . . . . . . . . . . . . Misdirections 4 | . . . . . . 1 1 2 . . . . . . . . . Weapon Failures 5 | . . 2 1 . . 1 . . . . . . . . . . 1 Overload Shots . | . . . . . . . . . . . . . . . . . . Overflow Damage 2290 | . 129 26 . . 714 . . . . . . 211 135 . 173 151 751 Projectiles 691 | . 35 26 . . 104 . . . . . . . . . 35 151 340 Explosions 229 | . 94 . . . 85 . . . . . . 5 . . . . 45 Melee 1370 | . . . . . 525 . . . . . . 206 135 . 138 . 366 Knockbacks 52 | . 13 9 6 . 24 . . . . . . . . . . . . Impact . | . . . . . . . . . . . . . . . . . . Kinetic 50 | . 13 8 6 . 23 . . . . . . . . . . . . Secondary 2 | . . 1 . . 1 . . . . . . . . . . . . Self-Inflicted Damage 454 | . 182 . 6 . 78 . . . . . . 65 . 105 . . 18 Shots 14 | . 2 . 1 . 2 . . . . . . 3 . 5 . . 1 Rammed 1 | . . . . . . . 1 . . . . . . . . . . Targets Rammed 1 | . . . . . . . 1 . . . . . . . . . . Kicked . | . . . . . . . . . . . . . . . . . . Crushed . | . . . . . . . . . . . . . . . . . . Highest Temperature 334 | . 85 126 . . 334 20 261 85 180 . . 202 . 205 187 176 199 Average Temperature 61 | . 21 21 . . 107 15 100 41 89 . . 58 . 111 87 86 92 Received Heat Transfer 2266 | . 18 54 48 . 773 . 30 109 . . . 587 18 60 . 18 551 Effects 1 | . . . . . 1 . . . . . . . . . . . . Matter Decay 1 | . . . . . 1 . . . . . . . . . . . . Siege Activations . | . . . . . . . . . . . . . . . . . . Martial Activations . | . . . . . . . . . . . . . . . . . . Shielding Activations . | . . . . . . . . . . . . . . . . . . Robots Disrupted 1 | . . . . . . . . . . . . . . . . . 1 Combat Hostiles 1 | . . . . . . . . . . . . . . . . . 1 Robots Corrupted 3 | . . . . . . . . . . . . . . 3 . . . Combat Hostiles 3 | . . . . . . . . . . . . . . 3 . . . Parts Fried 2 | . . . . . . . . . . . . . . 1 . . 1 Impact Corruptions . | . . . . . . . . . . . . . . . . . . Robots Melted . | . . . . . . . . . . . . . . . . . . Combat Hostiles . | . . . . . . . . . . . . . . . . . . Parts Melted 8 | . . . . . 2 . . . . . . . 5 . . . 1 Heat Transferred 237 | . 150 . . . . 37 . . . . . . . 50 . . . Parts Sabotaged 2 | . . . . . . . . . . . . . . . . . 2 Parts Stolen . | . . . . . . . . . . . . . . . . . . Parts Stripped . | . . . . . . . . . . . . . . . . . . Power Chain Reactions 2 | . . . . . . . . . . . . . . 1 . . 1 Alert | -11 -10 -10 -10 -8 -6 -6 -6 -6 -6 -6 -5 -5 -5 -5 -5 -4 -4 ------- Run | Yrd Mat Min Sub Scr Fac Was Fac Low Low Zio Pro Fac Upp Upp War Pro Fac Maximum Alert Level 5 | . . . . . 3 1 . . . . . 5 . . . . 3 Low Security (%) 61 | 100 100 100 . . 64 . 100 . . . . . . . . . 14 Level 1 12 | . . . . . 15 100 . . . . . . . . . . 37 Level 2 11 | . . . . . 17 . . . . . . 8 . . . . 29 Level 3 6 | . . . . . 3 . . . . . . 21 . . . . 18 Level 4 3 | . . . . . . . . . . . . 27 . . . . . Level 5 1 | . . . . . . . . . . . . 10 . . . . . High Security 3 | . . . . . . . . . . . . 32 . . . . . Max Security . | . . . . . . . . . . . . . . . . . . Peak Influence 1855 | 10 169 83 . . 860 290 147 . . . . 1855 . . . . 1063 Initial 626 | . . 53 . . . 290 147 . . . . 626 . . . . . Average 321 | 1 74 26 . . 213 249 50 . . . . 1384 . . . . 434 Influence Increases 8372 | 30 591 168 20 . 1636 . 78 61 135 . 610 2175 75 470 237 91 1995 Destroy 0b10 Robot/C 3480 | . 240 60 20 . 820 . 20 20 80 . 260 640 60 440 160 60 600 Destroy 0b10 Robot/NC 570 | 30 110 85 . . 155 . 5 . . . 10 55 5 . 10 . 105 Destroy Leader 720 | . 60 20 . . 212 . 10 . 10 . 40 152 10 30 . 20 156 Allied During Kill 963 | . . . . . 58 . . 11 45 . 285 479 . . 52 11 22 Trap Triggered on 0b10 70 | . . . . . 20 . . . . . . 30 . . . . 20 Successful Hack 280 | . 38 . . . 141 . 12 . . . . 36 . . . . 53 Select Force Hacks 30 | . 30 . . . . . . . . . . . . . . . . Disable Machine 450 | . 60 . . . 45 . . . . . . 45 . . . . 300 Destroy Structure 759 | . 38 3 . . 65 . 1 . . . . 258 . . . . 394 Advance Influence 450 | . . . . . . . . . . . . 450 . . . . . Partial Spotted 105 | . . . . . 30 . 30 . . . . 30 . . . . 15 Lose Combat Pursuer 495 | . 15 . . . 90 . . 30 . . 15 . . . 15 . 330 Influence Decreases 7309 | 30 453 298 28 . 805 621 260 82 37 105 330 600 1131 646 659 292 932 Entered New Map 2579 | . . 85 5 . . 541 63 11 2 105 . 104 687 152 623 201 . Time Decay 3600 | 30 453 213 23 . 535 50 187 71 15 . 290 246 434 464 36 91 462 Lost Part 580 | . . . . . 190 10 10 . . . . 70 10 10 . . 280 Lost Ally 400 | . . . . . 80 20 . . 20 . 40 180 . 20 . . 40 Purge Threat 150 | . . . . . . . . . . . . . . . . . 150 Squads Dispatched 52 | . 2 1 . . 18 . . . . . . 18 . 1 . . 12 Investigation 16 | . 1 1 . . 6 . . . . . . 4 . . . . 4 Extermination 7 | . . . . . 4 . . . . . . . . . . . 3 Reinforcement 15 | . 1 . . . 6 . . . . . . 6 . . . . 2 Assault 11 | . . . . . 1 . . . . . . 8 . 1 . . 1 Garrison 3 | . . . . . 1 . . . . . . . . . . . 2 Intercept . | . . . . . . . . . . . . . . . . . . Searches Triggered . | . . . . . . . . . . . . . . . . . . Construction Impeded 5 | . . . . . 3 . . . . . . 1 . . . . 1 Haulers Reinforced 3 | . . . . . . . . . . . . 2 . . . . 1 Active Scanning Responses . | . . . . . . . . . . . . . . . . . . Cargo Convoy Interrupts 2 | . . . . . 1 . . . . . . . . . . . 1 Stealth | -11 -10 -10 -10 -8 -6 -6 -6 -6 -6 -6 -5 -5 -5 -5 -5 -4 -4 --------- Run | Yrd Mat Min Sub Scr Fac Was Fac Low Low Zio Pro Fac Upp Upp War Pro Fac Distress Signals 7 | . . . . . 1 . . . . . 1 3 . . . . 2 Communications Jammed 7 | . . . . . . . . . . . . . . . . . 7 Distress Signals 7 | . . . . . . . . . . . . . . . . . 7 Times Spotted 292 | . 24 3 12 . 75 6 2 10 1 . 12 38 3 17 24 2 63 Peak Tracking Total 12 | . 3 2 4 . 11 6 1 6 4 . 5 5 2 9 12 2 11 Tactical Retreats 22 | . 1 . 2 . 5 . . 2 . . 1 . . . 1 . 10 Traps | -11 -10 -10 -10 -8 -6 -6 -6 -6 -6 -6 -5 -5 -5 -5 -5 -4 -4 ------- Run | Yrd Mat Min Sub Scr Fac Was Fac Low Low Zio Pro Fac Upp Upp War Pro Fac Traps Triggered 8 | . 1 . 2 . 1 . 2 . . . . 1 . . . . 1 Indirectly . | . . . . . . . . . . . . . . . . . . Trap Hack Attempts . | . . . . . . . . . . . . . . . . . . Triggered . | . . . . . . . . . . . . . . . . . . Disarmed 5 | . 5 . . . . . . . . . . . . . . . . Reprogrammed 8 | . . . . . . . . . . . . 6 . . . . 2 Reused 7 | . . . . . 2 . . . . . . 3 . . . . 2 Traps Extracted . | . . . . . . . . . . . . . . . . . . Installed 4 | . . . . . 2 . . . . . . 2 . . . . . Triggered 7 | . . . . . 2 . . . . . . 3 . . . . 2 Most Traps Carried 5 | . . . . 2 2 . . 5 5 5 3 2 . . . . . Machines | -11 -10 -10 -10 -8 -6 -6 -6 -6 -6 -6 -5 -5 -5 -5 -5 -4 -4 ---------- Run | Yrd Mat Min Sub Scr Fac Was Fac Low Low Zio Pro Fac Upp Upp War Pro Fac Machines Disabled 31 | . 4 . . . 3 . . . . . . 3 . . 1 . 20 Max in Single Turn 6 | . 2 . . . 1 . . . . . . . . . 1 . 6 Garrison Access 1 | . . . . . . . . . . . . 1 . . . . . Machines Repaired . | . . . . . . . . . . . . . . . . . . Machines Dismantled 1 | . . . . . . . . . . . . . . . 1 . . Machines Sabotaged . | . . . . . . . . . . . . . . . . . . Overloaded Fab Kills . | . . . . . . . . . . . . . . . . . . Hacking | -11 -10 -10 -10 -8 -6 -6 -6 -6 -6 -6 -5 -5 -5 -5 -5 -4 -4 --------- Run | Yrd Mat Min Sub Scr Fac Was Fac Low Low Zio Pro Fac Upp Upp War Pro Fac Machines Accessed 71 | . 10 1 2 2 20 . 3 . . . . 9 . . 12 . 12 Terminals 25 | . 7 1 . . 10 . 1 . . . . 2 . . . . 4 Fabricators 4 | . . . . . 2 . . . . . . 1 . . . . 1 Repair Stations 10 | . 1 . . . 3 . 2 . . . . 1 . . . . 3 Recycling Units 11 | . 2 . . . 2 . . . . . . 3 . . . . 4 Scanalyzers 4 | . . . . . 3 . . . . . . 1 . . . . . Garrison Access 1 | . . . . . . . . . . . . 1 . . . . . Total Hacks 184 | . 37 5 3 6 55 . 7 . . . . 21 . . 24 . 26 Successful 118 | . 21 . 3 6 27 . 2 . . . . 18 . . 24 . 17 Failed 65 | . 15 5 . . 28 . 5 . . . . 3 . . . . 9 Catastrophic 14 | . 2 . . . 8 . 3 . . . . . . . . . 1 Database Lockouts 1 | . 1 . . . . . . . . . . . . . . . . Manual 62 | . 20 6 . . 13 . 1 . . 5 . 5 . . . . 12 Terminals 74 | . 26 5 . . 24 . 1 . . . . 6 . . . . 12 Fabricators 9 | . . . . . 5 . . . . . . 3 . . . . 1 Repair Stations 32 | . 7 . . . 9 . 6 . . . . 3 . . . . 7 Recycling Units 16 | . 4 . . . 2 . . . . . . 4 . . . . 6 Scanalyzers 18 | . . . . . 15 . . . . . . 3 . . . . . Garrison Access 2 | . . . . . . . . . . . . 2 . . . . . Terminal Hacks 55 | . 7 . 3 6 4 . . . . . . 4 . . 24 . 7 Record 25 | . . . 1 5 . . . . . . . . . . 18 . 1 Robot Analysis 2 | . 1 . . . . . . . . . . . . . . . 1 Prototype ID Bank 8 | . 1 . . . 1 . . . . . . 1 . . 5 . . Open Door 4 | . . . 1 1 1 . . . . . . . . . 1 . . Branch Access Points 2 | . . . . . 1 . . . . . . 1 . . . . . Terminal Index 1 | . 1 . . . . . . . . . . . . . . . . Alert Level 1 | . . . . . . . . . . . . . . . . . 1 Unreport Threat 1 | . . . . . . . . . . . . . . . . . 1 Locate Traps 2 | . 2 . . . . . . . . . . . . . . . . Disarm Traps 1 | . 1 . . . . . . . . . . . . . . . . Reprogram Traps 3 | . . . . . . . . . . . . 2 . . . . 1 Reinforcement Status 1 | . . . . . . . . . . . . . . . . . 1 Recall Reinforcements 2 | . . . . . 1 . . . . . . . . . . . 1 Zone Layout 1 | . 1 . . . . . . . . . . . . . . . . Release Object 1 | . . . 1 . . . . . . . . . . . . . . Fabricator Hacks 6 | . . . . . 2 . . . . . . 3 . . . . 1 Network Status 3 | . . . . . 1 . . . . . . 1 . . . . 1 Load Schematic 2 | . . . . . 1 . . . . . . 1 . . . . . Build 1 | . . . . . . . . . . . . 1 . . . . . Repair Station Hacks 17 | . 6 . . . 4 . 2 . . . . 2 . . . . 3 Scan Component 10 | . 3 . . . 4 . 1 . . . . 1 . . . . 1 Repair 5 | . 3 . . . . . 1 . . . . 1 . . . . . Refit 2 | . . . . . . . . . . . . . . . . . 2 Recycling Unit Hacks 1 | . 1 . . . . . . . . . . . . . . . . Report Inventory 1 | . 1 . . . . . . . . . . . . . . . . Scanalyzer 14 | . . . . . 11 . . . . . . 3 . . . . . Insert Component 8 | . . . . . 6 . . . . . . 2 . . . . . Analyze 6 | . . . . . 5 . . . . . . 1 . . . . . Garrison Access Hacks 1 | . . . . . . . . . . . . 1 . . . . . Seal Access 1 | . . . . . . . . . . . . 1 . . . . . Unauthorized Hacks 23 | . 7 . . . 6 . . . . . . 4 . . . . 6 Terminals 14 | . 6 . . . 4 . . . . . . 1 . . . . 3 Assimilate 1 | . . . . . . . . . . . . . . . . . 1 Botnet 13 | . 6 . . . 4 . . . . . . 1 . . . . 2 Fabricators . | . . . . . . . . . . . . . . . . . . Repair Stations . | . . . . . . . . . . . . . . . . . . Recycling Units 9 | . 1 . . . 2 . . . . . . 3 . . . . 3 Tunnel 1 | . 1 . . . . . . . . . . . . . . . . Fedlink 6 | . . . . . 1 . . . . . . 2 . . . . 3 Scrapoids 2 | . . . . . 1 . . . . . . 1 . . . . . Scanalyzers . | . . . . . . . . . . . . . . . . . . Garrison Access . | . . . . . . . . . . . . . . . . . . Data Cores Recovered . | . . . . . . . . . . . . . . . . . . Used . | . . . . . . . . . . . . . . . . . . Hacking Detections 42 | . 9 1 . . 18 . 3 . . . . 4 . . . . 7 Full Trace Events 7 | . . 1 . . 4 . . . . . . 1 . . . . 1 Feedback Events 1 | . . . . . 1 . . . . . . . . . . . . Corruption 1 | . . . . . 1 . . . . . . . . . . . . Feedback Blocked . | . . . . . . . . . . . . . . . . . . Robot Schematics Acquired . | . . . . . . . . . . . . . . . . . . Robots Built . | . . . . . . . . . . . . . . . . . . Authchips . | . . . . . . . . . . . . . . . . . . Time . | . . . . . . . . . . . . . . . . . . Total Robot Build Rating . | . . . . . . . . . . . . . . . . . . Part Schematics Acquired 6 | . . . . . 5 . . . . . . 1 . . . . . Parts Built 1 | . . . . . . . . . . . . 1 . . . . . Authchips . | . . . . . . . . . . . . . . . . . . Time 67 | . . . . . . . . . . . . 67 . . . . . Total Part Build Rating 4 | . . . . . . . . . . . . 4 . . . . . Parts Repaired 5 | . 3 . . . . . 1 . . . . 1 . . . . . Time 221 | . 78 . . . . . 35 . . . . 108 . . . . . Parts Recycled . | . . . . . . . . . . . . . . . . . . Recycled Matter . | . . . . . . . . . . . . . . . . . . Retrieved Matter . | . . . . . . . . . . . . . . . . . . Retrieved Components . | . . . . . . . . . . . . . . . . . . Parts Scanalyzed 7 | . . . . . 6 . . . . . . 1 . . . . . Part Schematics Acquired 6 | . . . . . 5 . . . . . . 1 . . . . . Parts Damaged 1 | . . . . . 1 . . . . . . . . . . . . Bothacking | -11 -10 -10 -10 -8 -6 -6 -6 -6 -6 -6 -5 -5 -5 -5 -5 -4 -4 ------------ Run | Yrd Mat Min Sub Scr Fac Was Fac Low Low Zio Pro Fac Upp Upp War Pro Fac Used RIF Installer . | . . . . . . . . . . . . . . . . . . Robots Hacked 6 | . . . . . . . 1 2 . . . . . . . . 3 Non-combat . | . . . . . . . . . . . . . . . . . . Combat 1 | . . . . . . . . 1 . . . . . . . . . Robot Hacks Applied 1 | . . . . . . . . 1 . . . . . . . . . parse_system 1 | . . . . . . . . 1 . . . . . . . . . Manual 5 | . . . . . . . 1 1 . . . . . . . . 3 Relay Couplers Released . | . . . . . . . . . . . . . . . . . . Fabnet Peak Effective % . | . . . . . . . . . . . . . . . . . . Robots Rewired 8 | . . . . . . . . 2 . . . . . 1 5 . . Allies Hacked 3 | . . . . . 1 . . . . . . . . . . 2 . Hacks Repelled 1 | . . . . . . . . . . . . . . . . 1 . Allies | -11 -10 -10 -10 -8 -6 -6 -6 -6 -6 -6 -5 -5 -5 -5 -5 -4 -4 -------- Run | Yrd Mat Min Sub Scr Fac Was Fac Low Low Zio Pro Fac Upp Upp War Pro Fac Total Allies 29 | . . . . . 5 1 . 7 . 5 . 5 . 1 5 . . Largest Group 10 | . . . . . 5 1 . 7 7 10 10 7 . 1 5 4 3 Highest-Rated Group 501 | . . . . . 140 31 . 286 286 501 501 358 . 29 269 226 177 Highest-Rated Ally 96 | . . . . . 28 31 . 47 47 96 96 96 . 29 64 64 64 Total Orders 5 | . . . . . . . . . . . . . . 3 2 . . STAY 1 | . . . . . . . . . . . . . . . 1 . . FOLLOW 1 | . . . . . . . . . . . . . . . 1 . . EXPLORE 3 | . . . . . . . . . . . . . . 3 . . . Ally Attacks 370 | . . . . . 68 5 . 9 10 . 74 182 . 1 11 7 3 Total Damage 8471 | . . . . . 1257 103 . 327 223 . 1649 4231 . 18 311 239 113 Kills 55 | . . . . . 9 . . 2 4 . 14 22 . . 2 1 1 Allies Corrupted 1 | . . . . . . . . . . . . . . . . 1 . Allies Melted . | . . . . . . . . . . . . . . . . . . Intel | -11 -10 -10 -10 -8 -6 -6 -6 -6 -6 -6 -5 -5 -5 -5 -5 -4 -4 ------- Run | Yrd Mat Min Sub Scr Fac Was Fac Low Low Zio Pro Fac Upp Upp War Pro Fac Active Infowar (turns) 9928 | 76 966 554 781 . 1776 . . 883 303 733 694 25 913 728 1312 131 53 Optics 499 | . . . . . . . . . . . . . . . 368 131 . A.S.S. 2638 | . . . . . . . . 883 303 733 694 25 . . . . . Terrain 6986 | 76 966 554 781 . 652 . . 508 303 89 431 19 913 728 966 . . Decoding 1124 | . . . . . 1124 . . . . . . . . . . . . Jamming 212 | . . . . . . . . . . . . . . 163 . . 49 ECM 4 | . . . . . . . . . . . . . . . . . 4 Robot Analysis Total 2 | . 1 . . . . . . . . . . . . . . . 1 Derelict Logs Recovered 19 | . . 2 2 3 . . . 1 1 1 1 . 3 2 . 3 . Drone Launches 3 | . . . . . . . . . . . . . . 3 . . . Drone Recoveries 1 | . . . . . . . . . . . . . . 1 . . . Decoded 0b10 Intel 70 | . . . . . 70 . . . . . . . . . . . . Items 70 | . . . . . 70 . . . . . . . . . . . . Exploration | -11 -10 -10 -10 -8 -6 -6 -6 -6 -6 -6 -5 -5 -5 -5 -5 -4 -4 ------------- Run | Yrd Mat Min Sub Scr Fac Was Fac Low Low Zio Pro Fac Upp Upp War Pro Fac Turns Passed 16311 | 178 1547 586 1388 1307 2098 112 467 886 303 733 694 784 1065 1161 1512 248 1242 Spaces Moved 12753 | 64 743 275 716 737 1590 100 402 1064 379 928 680 752 837 831 1106 224 1325 Core 9 | 2 . . . . . . . . . . . . . . . . 7 Treads 2976 | 62 743 275 716 737 430 . . . . . . . . . . . 13 Legs 2734 | . . . . . . . . . . . . 183 837 831 883 . . Wheels 594 | . . . . . 209 . 270 . . . . . . . . . 115 Hover 6440 | . . . . . 951 100 132 1064 379 928 680 569 . . 223 224 1190 Flight . | . . . . . . . . . . . . . . . . . . Fastest Speed 36 | 50 160 160 160 160 45 56 56 52 52 52 52 52 120 120 45 96 36 Average Speed 96 | 156 160 160 160 166 86 81 95 52 52 52 52 72 120 120 110 96 56 Slowest Speed 500 | 160 160 160 160 170 163 111 115 56 52 52 52 330 120 120 190 98 500 Overloaded Moves 23 | . . . . . . . . . . . . . . . . . 23 Propulsion Burnouts . | . . . . . . . . . . . . . . . . . . Robots Hopped . | . . . . . . . . . . . . . . . . . . Potential Cave-ins 2 | . . . . . . . . . . . . . . . . . 2 Cave-ins Triggered . | . . . . . . . . . . . . . . . . . . Exploration Rate (%) 54 | 5 94 45 39 50 41 77 5 80 53 84 68 14 82 75 93 40 36 Regions Visited 17 Branch Regions 11 Pre-discovered Areas 4 | . 1 . 1 . . . . . . . . 1 . . 1 . . Known Exits Taken 7 | . . . . . . . 1 1 1 1 1 1 . 1 . . . Unknown Exits Taken 8 | 1 1 1 1 1 . . . . . . . . 1 . 1 1 . Scrap Searched 27 | . . 1 2 3 . . . 3 2 5 1 . 2 4 . 4 . Spaces Dug 132 | . . . 15 . 9 . . 1 . . . . . . 1 . 106 Terrain Destroyed 806 | . 32 3 107 . 62 . . 1 . . . 179 . 131 5 10 276 Melee 9 | . . . . . 2 . . 1 . . . . . . 1 . 5 Projectile 89 | . 5 3 5 . 37 . . . . . . . . . 4 10 25 AOE 708 | . 27 . 102 . 23 . . . . . . 179 . 131 . . 246 Terrain Rammed . | . . . . . . . . . . . . . . . . . . Walls Destroyed . | . . . . . . . . . . . . . . . . . . Machines Disabled . | . . . . . . . . . . . . . . . . . . Actions | -11 -10 -10 -10 -8 -6 -6 -6 -6 -6 -6 -5 -5 -5 -5 -5 -4 -4 --------- Run | Yrd Mat Min Sub Scr Fac Was Fac Low Low Zio Pro Fac Upp Upp War Pro Fac Total 15769 | 98 957 334 857 824 2022 125 483 1382 484 1177 1013 908 879 968 1366 246 1646 Wait 1671 | . 90 8 52 58 117 5 34 252 106 243 324 36 11 94 160 11 70 Move 12737 | 63 742 274 715 736 1590 99 401 1063 378 927 679 751 836 830 1105 223 1325 Hop . | . . . . . . . . . . . . . . . . . . Pick Up 149 | 3 21 2 5 9 24 1 10 22 . 2 1 13 5 5 10 . 16 Fast Attach 79 | 7 2 . . 1 20 3 2 3 . . . 9 . . 12 2 18 Attach 103 | . . 1 . 1 27 5 7 4 . . . 12 1 5 8 . 32 Detach 79 | . 2 . . 1 16 7 4 6 . . . 4 1 5 9 1 23 Swap 121 | . 11 4 20 6 17 . . 4 . 3 5 10 6 5 11 2 17 Drop 151 | . 14 2 7 12 34 . 7 10 . 2 1 14 3 5 19 1 20 Fire 392 | 25 75 43 58 . 90 5 2 8 . . . 6 . 9 18 4 49 Melee 257 | . . . . . 84 . 4 10 . . 3 51 16 10 4 . 75 Ram 1 | . . . . . . . 1 . . . . . . . . . . Kick . | . . . . . . . . . . . . . . . . . . Crush . | . . . . . . . . . . . . . . . . . . Escape Stasis 11 | . . . . . . . 11 . . . . . . . . . . Rewire 5 | . . . . . 1 . . . . . . . . . 2 2 . Trap 4 | . . . . . 2 . . . . . . 2 . . . . . Miscellaneous 9 | . . . . . . . . . . . . . . . 8 . 1 Route ------- -11/Scrapyard -10/Materials (discovered 4 exits: [*Mat x3] / *Min) -10/Mines -10/Subcaves (discovered 2 exits: [*Mat] / *Scr) -8/Scraptown -6/Factory (discovered 8 exits: *Fac x4 / *Low x2 / *Ext x2) -6/Waste -6/Factory -6/Lower Caves -6/Lower Caves -6/Zion (discovered 2 exits: [*Dee] / *Pro) -5/Proximity Caves -5/Factory (discovered 3 exits: *Fac / *Upp x2) -5/Upper Caves -5/Upper Caves (discovered 2 exits: *Fac / *War) -5/Warlord -4/Proximity Caves -4/Factory (discovered 6 exits: *Res x4 / *Upp x2) History --------- Turn | Location | Event 53 | -11/Scrapyard | Discovered new exit (range 15) 179 | -11/Scrapyard | Entered Materials 308 | -10/Materials | Build established: Mutant 461 | -10/Materials | Central database locked down 524 | -10/Materials | Discovered new exit (range 12) 955 | -10/Materials | Discovered new exit (range 11) 1100 | -10/Materials | Discovered new exit (range 16) 1366 | -10/Materials | Discovered new exit (range 16) 1420 | -10/Materials | Repaired Lgt. Treads 1447 | -10/Materials | Repaired Lgt. Treads 1475 | -10/Materials | Repaired Lgt. Treads 1726 | -10/Materials | Entered Mines 1733 | -10/Mines | Met a Derelict bent on vengeance 1826 | -10/Mines | Learned Materials non-interactive machine intel 2111 | -10/Mines | Learned Materials stockpile data 2285 | -10/Mines | Discovered new exit (range 10) 2312 | -10/Mines | Entered Subcaves 2313 | -10/Subcaves | Approached by a straggling Scientist 3052 | -10/Subcaves | Ambushed by Subdweller buried in earth 3052 | -10/Subcaves | Ambushed by Subdweller buried in earth 3052 | -10/Subcaves | Ambushed by Subdweller buried in earth 3100 | -10/Subcaves | Discovered new exit (range 5) 3335 | -10/Subcaves | Shifting Twisted Machinery released Sub. Shrapnel Launcher 3383 | -10/Subcaves | Shifting Twisted Machinery released Mak. Thermal Plating 3395 | -10/Subcaves | Learned 2 Materials zone layouts 3401 | -10/Subcaves | Learned location of Zion (-6) 3466 | -10/Subcaves | Ambushed by Subdweller buried in earth 3575 | -10/Subcaves | Shifting Twisted Machinery released Scrap Shield 3576 | -10/Subcaves | Shifting Twisted Machinery released Flamer 3655 | -10/Subcaves | Scientist uncovered a shortcut to Scraptown 3700 | -10/Subcaves | Entered Scraptown 3700 | -8/Scraptown | System corruption cleaned by C-Scrubber 3830 | -8/Scraptown | Scanned Subdweller tech in exchange for log data 3835 | -8/Scraptown | Learned Research emergency access door positions 3836 | -8/Scraptown | Learned 8 Factory zone layouts 3838 | -8/Scraptown | Learned Factory terminal intel 3922 | -8/Scraptown | Visited UFD Registry 3922 | -8/Scraptown | Registered with UFD as "Softcircuit" 4052 | -8/Scraptown | Delivered Scrap Shield to a Scientist 4140 | -8/Scraptown | Visited DA-N13 Charitable Foundation 4149 | -8/Scraptown | Found DCF Scrap (27 items) 4241 | -8/Scraptown | Visited Scrapoid Pod Storage 4309 | -8/Scraptown | Found Scrapoid Pod 4336 | -8/Scraptown | Visited Science Guys 4373 | -8/Scraptown | Visited Chapter 10 4405 | -8/Scraptown | Visited Abandonware Association 4426 | -8/Scraptown | Learned abandonware demo "ERRANTS.EXE" 4426 | -8/Scraptown | Learned abandonware demo "KABOOM.EXE" 4523 | -8/Scraptown | Visited Sword Containment 4580 | -8/Scraptown | Visited Scrap Suit Storage 4606 | -8/Scraptown | Visited Infowarlord's Domain 4730 | -8/Scraptown | Received an X-ray algorithm 4917 | -8/Scraptown | Met Optimus 4917 | -8/Scraptown | Accepted into 0bPrime 5004 | -8/Scraptown | Discovered new exit (range 3) 5007 | -8/Scraptown | Entered Factory 5007 | -6/Factory | Evolved 8 slots: Propulsion x3, Utility x3, Weapon x2 5008 | -6/Factory | Identified exit to Factory 5009 | -6/Factory | Loaded intel: 28 terminal locations 5098 | -6/Factory | Discovered exit to Factory (range 3) 5308 | -6/Factory | Build established: Derelict-Gunner 5891 | -6/Factory | Discovered exit to Factory (range 9) 5987 | -6/Factory | Identified exit to Lower Caves 5987 | -6/Factory | Identified exit to Extension 6321 | -6/Factory | Cargo convoy interrupted 6396 | -6/Factory | Destroyed 9 combat bots 6396 | -6/Factory | Lost 7 parts (1p2n2u2w) 6454 | -6/Factory | Spotted B-75 Beast 6515 | -6/Factory | Loaded intel: 8 recycling unit locations 6671 | -6/Factory | Scrapoid reinforcements arrived 6719 | -6/Factory | Found Active Sensor Suite 6737 | -6/Factory | Lost 4 allies 6757 | -6/Factory | First assault squad dispatched 6982 | -6/Factory | Garrison activated, responded to threat 6987 | -6/Factory | Core integrity fell below 50% 7090 | -6/Factory | System corruption reached 10% 7103 | -6/Factory | Core integrity fell below 20% 7105 | -6/Factory | Sucked down chute 7105 | -6/Factory | Entered Waste 7106 | -6/Waste | Met a frightened Derelict 7119 | -6/Waste | Spotted C-40 Crusher 7120 | -6/Waste | EMP discharged 7121 | -6/Waste | Spotted C-40 Crusher 7131 | -6/Waste | Lost 7 parts (2n2u3w) 7151 | -6/Waste | Spotted C-40 Crusher 7175 | -6/Waste | Spotted C-40 Crusher 7178 | -6/Waste | Spotted C-40 Crusher 7184 | -6/Waste | Spotted C-40 Crusher 7209 | -6/Waste | Discovered new exit (range 10) 7217 | -6/Waste | Entered Factory 7374 | -6/Factory | Build established: Mutant 7568 | -6/Factory | Repaired Broken Gravmag Array? 7659 | -6/Factory | Discovered exit to Lower Caves (range 15) 7684 | -6/Factory | Entered Lower Caves 7685 | -6/Lower Caves | Encountered a Warlord checkpoint 7686 | -6/Lower Caves | UFD Scientist delivered a prototype 7688 | -6/Lower Caves | Found Prototype Protection 7722 | -6/Lower Caves | Attracted the attention of an 0b10 checkpoint 7769 | -6/Lower Caves | Found DCF Scrap (14 items) 7796 | -6/Lower Caves | Attacked by a faux Warlord 7924 | -6/Lower Caves | Learned Factory emergency access door positions 7982 | -6/Lower Caves | Build established: Scout 8183 | -6/Lower Caves | Scrapoid Pod released 06L10-D (x5) 8476 | -6/Lower Caves | Discovered new exit (range 9) 8480 | -6/Lower Caves | Identified exit to Lower Caves 8570 | -6/Lower Caves | Entered another Lower Caves area 8570 | -6/Lower Caves | Accompanied by 7 allies 8741 | -6/Lower Caves | Encountered a Warlord checkpoint 8864 | -6/Lower Caves | Discovered new exit (range 9) 8867 | -6/Lower Caves | Learned Factory stockpile data 8869 | -6/Lower Caves | Identified exit to Zion 8873 | -6/Lower Caves | Entered Zion 8873 | -6/Zion | Accompanied by 5 allies 8901 | -6/Zion | Given A8's code to call for help 8907 | -6/Zion | Discovered new exit (range 11) 8930 | -6/Zion | System corruption cleaned by Quarantine Array 9008 | -6/Zion | Acquired unknown access codes intercepted by a Zionite 9023 | -6/Zion | Learned location of 1 exit from Factory 9040 | -6/Zion | Gained Derelict followers 9071 | -6/Zion | Turned away by Imprinter 9132 | -6/Zion | Opened final containment barrier to the Deep Caves 9144 | -6/Zion | Enhanced Grunt warped into view, answering call for help 9144 | -6/Zion | Enhanced Grunt warped into view, answering call for help 9312 | -6/Zion | Discovered new exit (range 3) 9312 | -6/Zion | Saw the warning signs outside the Deep Caves entrance 9606 | -6/Zion | Identified exit to Proximity Caves 9606 | -6/Zion | Entered Proximity Caves 9606 | -5/Proximity Caves | Accompanied by 10 allies 9705 | -5/Proximity Caves | Spotter reported a threat 10002 | -5/Proximity Caves | Spotter reported a threat 10033 | -5/Proximity Caves | Spotted B-75 Beast 10044 | -5/Proximity Caves | Allies destroyed B-75 Beast 10054 | -5/Proximity Caves | Spotter reported a threat 10123 | -5/Proximity Caves | Learned Factory interactive machine intel 10239 | -5/Proximity Caves | Discovered exit to Factory (range 15) 10300 | -5/Proximity Caves | Entered Factory 10300 | -5/Factory | Accompanied by 7 allies 10300 | -5/Factory | Evolved 2 slots: Utility x2 10301 | -5/Factory | Identified exit to Upper Caves 10304 | -5/Factory | Loaded intel: 54 interactive machine locations 10325 | -5/Factory | Loaded intel: 8 recycling unit locations 10325 | -5/Factory | Learned location of Protoforge (-3) 10358 | -5/Factory | Found Prototype Launcher 10363 | -5/Factory | Identified Scatter Rocket Array 10559 | -5/Factory | Fabricated Imp. Airjet? 10585 | -5/Factory | Discovered new exit (range 14) 10611 | -5/Factory | Build established: Hacker-Scout 10640 | -5/Factory | Identified Enh. Scrap Shield 10737 | -5/Factory | Scrapoids reinforcements arrived? 10793 | -5/Factory | Lost 3 allies 10807 | -5/Factory | Lost 6 parts (4n2u) 10829 | -5/Factory | High security lockdown imminent 10909 | -5/Factory | High security lockdown engaged 10979 | -5/Factory | Repaired Centrium Medium Armor Plating? 11081 | -5/Factory | Build established: Scavenger-Mutant 11084 | -5/Factory | Entered Upper Caves 11085 | -5/Upper Caves | Encountered a Warlord checkpoint 11092 | -5/Upper Caves | Learned Factory terminal intel 11207 | -5/Upper Caves | Lost 3 allies 11442 | -5/Upper Caves | Learned Factory stockpile data 11775 | -5/Upper Caves | Learned location of 1 exit from Factory 11836 | -5/Upper Caves | Found DCF Scrap (15 items) 11883 | -5/Upper Caves | Attracted the attention of an 0b10 checkpoint 11951 | -5/Upper Caves | Discovered new exit (range 12) 12131 | -5/Upper Caves | Build established: Hacker-Mutant 12149 | -5/Upper Caves | Entered another Upper Caves area 12189 | -5/Upper Caves | Discovered new exit (range 12) 12199 | -5/Upper Caves | Identified exit to Warlord 12652 | -5/Upper Caves | Learned location of 2 exits from Factory 12887 | -5/Upper Caves | Attracted the attention of an 0b10 checkpoint 13098 | -5/Upper Caves | Attracted the attention of an 0b10 outpost 13103 | -5/Upper Caves | Core integrity fell below 50% 13142 | -5/Upper Caves | Destroyed 10 combat bots 13310 | -5/Upper Caves | Entered Warlord 13373 | -5/Warlord | System corruption cleaned by Quarantine Array 13522 | -5/Warlord | Learned Armory fabricator intel 13522 | -5/Warlord | Learned 4 Access zone layouts 13522 | -5/Warlord | Learned location of Testing (-2) 13883 | -5/Warlord | Build established: Commander-Mutant 13946 | -5/Warlord | Warlord's base attacked by MAIN.C 14023 | -5/Warlord | Found Prototype Energy Gun 14026 | -5/Warlord | Found Prototype Energy Gun 14029 | -5/Warlord | Identified Vortex Rifle (x2) 14030 | -5/Warlord | Found Prototype Energy Cannon 14030 | -5/Warlord | Identified Vortex Driver 14036 | -5/Warlord | Found Vortex Driver 14204 | -5/Warlord | Rebuked by Warlord 14296 | -5/Warlord | Warlord forces counterattacked 14328 | -5/Warlord | Build established: Derelict-Mutant 14446 | -5/Warlord | Found Prototype Device 14446 | -5/Warlord | Identified Exp. Phase Shifter 14454 | -5/Warlord | Found Spectral Analyzer 14458 | -5/Warlord | Found Prototype Device 14458 | -5/Warlord | Identified Exp. Focal Shield 14473 | -5/Warlord | Found Prototype Hackware 14478 | -5/Warlord | Found Prototype Reactor 14621 | -5/Warlord | Warlord base infiltrated, sounded retreat 14635 | -5/Warlord | Spotted Executioner 14645 | -5/Warlord | Destroyed Executioner 14681 | -5/Warlord | Lost 3 allies 14734 | -5/Warlord | Discovered new exit (range 15) 14746 | -5/Warlord | Spotted Striker 14758 | -5/Warlord | Destroyed Striker 14786 | -5/Warlord | Lost 5 allies 14822 | -5/Warlord | Entered Proximity Caves 14822 | -4/Proximity Caves | Accompanied by 4 allies 14896 | -4/Proximity Caves | Learned Research stockpile data 14925 | -4/Proximity Caves | Learned Research terminal intel 14977 | -4/Proximity Caves | Learned location of 1 exit from Upper Caves 15046 | -4/Proximity Caves | Discovered new exit (range 10) 15070 | -4/Proximity Caves | Entered Factory 15070 | -4/Factory | Accompanied by 3 allies 15070 | -4/Factory | Evolved 2 slots: Power x1, Propulsion x1 15071 | -4/Factory | Identified exit to Research 15071 | -4/Factory | Identified Vortex Chain Reactor 15072 | -4/Factory | Identified exit to Upper Caves 15074 | -4/Factory | Loaded intel: 25 terminal locations 15092 | -4/Factory | Loaded intel: 8 recycling unit locations 15158 | -4/Factory | Garrison activated, responded to threat 15225 | -4/Factory | Spotted B-86 Titan 15244 | -4/Factory | Destroyed B-86 Titan 15308 | -4/Factory | Lost 4 parts (2n2u) 15468 | -4/Factory | Identified System Mapper 15528 | -4/Factory | Build established: Hacker-Mutant 15651 | -4/Factory | Discovered exit to Upper Caves (range 14) 15730 | -4/Factory | Discovered exit to Research (range 10) 15810 | -4/Factory | Lost 3 parts (2n1u) 16067 | -4/Factory | System corruption reached 10% 16070 | -4/Factory | First assault squad dispatched 16084 | -4/Factory | Core integrity fell below 50% 16139 | -4/Factory | Lost 9 parts (2p2n4u1w) 16272 | -4/Factory | Spotted B-86 Titan 16303 | -4/Factory | Cargo convoy interrupted 16303 | -4/Factory | Spotted Striker 16305 | -4/Factory | Garrison activated, responded to threat 16305 | -4/Factory | Spotted Striker 16307 | -4/Factory | Core integrity fell below 20% 16312 | -4/Factory | Destroyed by Striker with Compact Linear Accelerator Last Messages --------------- recycling unit. 16306_ Imp. Remote Datajack tumbles out of recycling unit. 16306_ Wheel tumbles out of recycling unit. 16306_ Wheel destroyed. 16306_ Tesla Rifle tumbles out of recycling unit. 16306_ K-01 Serf collects debris. 16307_ U-05 Engineer lays Concrete. 16307_ Assembly Bed disabled. 16307_ Slug penetrates Wall. 16308_ U-05 Engineer lays Concrete. 16308_ Dropped Lrg. Storage Unit. 16309_ Destroyed Wheel. 16309_ U-05 Engineer destroyed. 16309_ Penetrated by Slug. 16309_ K-01 Serf collects debris. 16309_ Acquired Exp. Focal Shield. 16310_ Penetrated by Slug. 16311_ System corrupted: Exp. Focal Shield rejected. 16311_ The unstable cave ceiling collapses. Map ----- +----------------------------------------------------+ | #????????????? """ """ """ ###+##/## ##### | | #????????????# """ """ """ # #??#?????? | | #????????????# # ! #????????? | | # #????????????# # #????????? | | # #????????????###+########/## [#????????? | | ## #??????# ###### # #????????? | | ?? ?????? # #????????? | | ?? ###?????# ###### ########????????? | | ?? #???????????????????????#####???????????????? | | ?? #???????????????????????????????????????????? | | ?? #???????????????????????????????????????????? | | ?? #???????????????????????????????????????????? | | ?? #???????????????????????????????????????????? | | ??? #???????????????????????????????????????????? | | ??? #???????!???????????????????????????????????? | | ??? ?????????????????????????"???????????????????? | | ????????????????????????????? ??????###??????????? | | ??????????????????????????###+###### #?????????? | | ??????????????????????????# ????????? | | ??????????????????????????# ????????? | | ??????????????????????????+ k ???????? | | ???????????????????####+### ?????=?? | | ???????????????????# [ ??????? | | ??????????????????## h= !??????? | | ??????????????????#; = % ??????? | | ??????????????????#; @ %%%K "?????? | | ??????????????????#; = [ [ ?????? | | ??????????????????#; [ ] ????? | | ??????????????????#; %*![ K &[ ] ?????? | | ??????????????????#; !*!| Y ][ ?????? | | ??????????????????##! [!!; ; # !][ ?????? | | ???????????????????#;;;;;;; ;;; ### ""!! ????? | | ???????????????????# #???##""?????????? | | ???????????????????# #?????"T?????????? | | ?????????????####### #?????""?????????? | | ????????????? ] # "" " """" #?????""?????????? | | ?????????????" # """" """" #????????????????? | | ????????????"" # """" """" #????????????????? | | ????????????"" # """" """" #????????????????? | | ??????????? # """" """" #????????????????? | | ???????????""" ! # """" """" #????????????????? | | ????????????"" # #????????????????? | | ?????????????" # [ #???????????"" """ | | ??#######????? ?# #????????? | | ??# #######+#########+##############"" | | ??# | | ??+ " ####### | | ??# #???????? ## | | ??# #################+########??????????#????? | | ??### ###???????????#! !#?????????????????? | +----------------------------------------------------+ Best States ------------- Heat Dissipation 62 Coolant Potential 80 Energy Generation 55 Energy Capacity 750 Matter Stores 408 Matter Capacity 500 Sight Range 24 Robot Scan Range 20 Terrain Scan Range 20 Terrain Scan Density 10 ECM Strength 2 Jamming Range 16 Armor Coverage 1025 Resistance: KI 30 Weapon Shielding 90 Melee Speed Boost 20 Phase Shifting 20 Evasion (%) 76 Targeting Accuracy 6 Melee Accuracy 8 Target Analysis 6 Armor Integrity Analysis 40 Recoil Reduction 5 Salvage Targeting 3 Offensive Hacking 31 Defensive Hacking 22 Item Schematics ----------------- Imp. Airjet | -6/Factory | Scanalyzed Adv. Assault Cannon | -6/Factory | Scanalyzed Gravmag Array | -6/Factory | Scanalyzed Lgt. Angular Momentum Engine | -6/Factory | Scanalyzed Remote Datajack | -6/Factory | Scanalyzed Centrium Medium Armor Plating | -5/Factory | Scanalyzed Robot Schematics ------------------ None Fabricated ------------ Imp. Airjet | x1 | -5/Factory Repaired ---------- Lgt. Treads | 5% | -10/Materials Lgt. Treads | 39% | -10/Materials Lgt. Treads | 68% | -10/Materials Gravmag Array | 13% | -6/Factory | Broken Centrium Medium Armor Plating | 1% | -5/Factory Alien Tech Used ----------------- None Achievements -------------- None Challenges ------------ None Game ------ Seed ChromionWeaponTriangulator Manual? 0 Play Time 03:02:47 Cumulative 306.2 hours Start 2025.06.18 @ 16:46:11 End 2025.06.18 @ 19:49:49 Sessions 3 Manual Loads 0 Difficulty Rogue Special Mode None Game No. 193 Rogue 193 Adventurer 0 Explorer 0 Win Type - Total 4 Types 2/0/1/1/0/0/0/0/0/0 Lore% 83 Gallery% 70 Achievement% 67 Wizard Run 0 Options --------- Layout 2 ASCII 0 Keyboard 1 Movement Vi Keybinds 0 Fullscreen 1 Font 16/Tamsyn Map View 55x47 Zoom Use 0% Tactical HUD 1 Map Filters NONE Filters NONE Steam 0 RUN: 420595f2-018a-498a-a696-d29935cd06c5